Cogmind - Beta 16 @@@ ROGUE MODE // 2025.11.21 @ 12:39:45 // Winter2019/RPGLIKE Player: GFYguy Result: Destroyed by Y-45 Defender with Beam Rifle Performance ------------- Evolutions (1) 500 Regions Visited (2) 400 Robots Destroyed (60) 300 Value Destroyed (1108) 1108 Prototype IDs (4) 80 Alien Tech Used (0) 0 Bonus (165) 165 TOTAL SCORE: 2553 Bonus ------- High Alert Combat Kills 165 Cogmind --------- Core Integrity 0/600 Matter 240/300 Energy 160/160 System Corruption 0% Temperature Warm (166) Movement Flying (29) Location -9/Materials Parts ------- > --- POWER (1) -------- Light Nuclear Core > --- PROPULSION (4) --- Flight Unit Flight Unit Flight Unit VTOL Module > --- UTILITY (2) ------ Hacking Suite Field Recycling Unit > --- WEAPON (2) ------- Missile Launcher Missile Launcher > --- INVENTORY (1) ---- (None) Peak State ------------ > --- POWER ------------ Light Nuclear Core > --- PROPULSION ------- Flight Unit Flight Unit Flight Unit VTOL Module > --- UTILITY ---------- Hacking Suite Field Recycling Unit > --- WEAPON ----------- Missile Launcher Missile Launcher > --- INVENTORY -------- (None) [Rating: 19] Favorites ----------- Power Light Nuclear Core Power Core Light Nuclear Core Propulsion Hover Unit Hover Unit Hover Unit Flight Unit Flight Unit Utility Hacking Suite Device Field Recycling Unit Hackware Hacking Suite Weapon Assault Rifle Ballistic Gun Assault Rifle Launcher Missile Launcher Build | -11 -10 -9 ------- Run | Yrd Mat Mat Slots Evolved 5 | . 3 2 Power . | . . . Propulsion 3 | . 3 . Utility 1 | . . 1 Weapon 1 | . . 1 Parts Attached 17 | 1 12 4 Power 1 | . 1 . Engine . | . . . Core 1 | . 1 . Reactor . | . . . Propulsion 10 | . 9 1 Treads . | . . . Leg . | . . . Wheel . | . . . Hover 5 | . 5 . Flight 5 | . 4 1 Utility 2 | . 1 1 Device 1 | . . 1 Storage . | . . . Processor . | . . . Hackware 1 | . 1 . Protection . | . . . Artifact . | . . . Weapon 4 | 1 1 2 Energy Gun . | . . . Energy Cannon . | . . . Ballistic Gun 1 | 1 . . Ballistic Cannon . | . . . Launcher 3 | . 1 2 Special Weapon . | . . . Impact Weapon . | . . . Slashing Weapon . | . . . Piercing Weapon . | . . . Special Melee Weapon . | . . . Unidentified Prototypes 1 | . . 1 Parts Lost 1 | . . 1 Power 1 | . . 1 Propulsion . | . . . Utility . | . . . Weapon . | . . . Highest Loss Streak 1 | . . 1 To Critical Strikes . | . . . Average Backups . | . . . Power . | . . . Propulsion . | . . . Utility . | . . . Weapon . | . . . Tool/Special . | . . . Unused Backups 1 | . . 1 Power . | . . . Propulsion . | . . . Utility . | . . . Weapon . | . . . Tool/Special 1 | . . 1 Average Slot Usage (%) 90 | . 86 99 Core 7 | . 5 11 Hover 34 | . 49 . Flight 15 | . 1 47 Device 3 | . . 10 Hackware 13 | . 14 11 Ballistic Gun 8 | . 12 . Launcher 6 | . 2 16 Peak Build Rating 19 | 1 12 19 Average Rating 11 | . 9 16 On Entrance 4 | . 1 12 Avg Prop Armor Cover (%) . | . . . Naked Turns . | . . . Heaviest Build 25 | 2 7 25 Greatest Support 29 | 3 29 26 Greatest Overweight (x) . | . . . Average Overweight (x) . | . . . Largest Inventory Capacity 1 | . 1 1 Average Capacity . | . . 1 Most Carried 1 | . 1 1 Average Carried . | . . . Final Capacity 1 | . 1 1 Final Carried 1 | . 1 . Class Distribution -------------------- 67% | Mutant 32% | Sprinter Dominant Class ---------------- Mutant | -10/Materials Sprinter | -9/Materials Resources | -11 -10 -9 ----------- Run | Yrd Mat Mat Matter Collected 1109 | 210 369 530 Remotely . | . . . Salvage Created 1113 | . 385 728 Parts 99 | . 32 67 Haulers Intercepted 5 | . 1 4 Recyclers Shooed 1 | . 1 . Parts Field Recycled 39 | . . 39 Retrieved Matter 166 | . . 166 Parts Self-Destructed . | . . . Prevented . | . . . Parts Restored . | . . . Kills | -11 -10 -9 ------- Run | Yrd Mat Mat Combat Hostiles Destroyed 39 | . 12 27 Guns 9 | . 9 . AOE 30 | . 3 27 Classes Destroyed 11 | . 7 4 Worker 2 | . . 2 Builder 2 | . 1 1 Tunneler 2 | . . 2 Hauler 5 | . 1 4 Recycler 1 | . 1 . Operator 2 | . 2 . Watcher 7 | . 3 4 Swarmer 21 | . 9 12 Grunt 13 | . 3 10 Duelist 1 | . . 1 Sentry 4 | . . 4 Best Kill Streak 13 | . 6 13 Combat Bots Only 10 | . 6 10 Max Kills in Single Turn 4 | . 3 4 Gunslinging . | . . . Exploded 3 | . 3 3 Melee . | . . . Uniques/NPCs Destroyed . | . . . Combat | -11 -10 -9 -------- Run | Yrd Mat Mat Hostile Shots Fired 94 | . 45 49 Missed 32 | . 15 17 Hits 62 | . 30 32 Projectile 62 | . 30 32 Critical Strikes 2 | . 1 1 Damage Taken 784 | . 327 457 Core 652 | . 268 384 Absorbed by Shields . | . . . Redirected to Core 430 | . 188 242 Core Remaining (%) 79 | 100 58 . Volleys Fired 120 | . 87 33 Largest 2 | . 1 2 Hottest 72 | . 30 72 Shots Fired 138 | . 87 51 Gun 83 | . 83 . Cannon . | . . . Launcher 55 | . 4 51 Special . | . . . Kinetic 83 | . 83 . Thermal . | . . . Explosive 55 | . 4 51 Electromagnetic . | . . . Robot Hit Streak 10 | . 10 9 Robot Miss Streak 3 | . 3 2 Penetration Max . | . . . Secondary Targets . | . . . Shots Hit Robots 78 | . 59 19 Core Hits 78 | . 26 52 Critical Kills . | . . . Critical Parts Destroyed 2 | . 2 . Critical Strikes 2 | . 2 . Destroy 2 | . 2 . Melee Attacks . | . . . Impact . | . . . Slashing . | . . . Piercing . | . . . Sneak Attacks . | . . . Combat Hostiles . | . . . Follow-up Attacks . | . . . Damage Inflicted 3670 | . 1123 2547 Guns 688 | . 688 . Cannons . | . . . Explosions 2982 | . 435 2547 Melee . | . . . Ramming . | . . . Kinetic 688 | . 688 . Thermal . | . . . Explosive 2982 | . 435 2547 Electromagnetic . | . . . Impact . | . . . Slashing . | . . . Piercing . | . . . Highest Corruption . | . . . Average Corruption . | . . . Corruption Purged . | . . . Corruption Blocked . | . . . Overload Shots . | . . . Overflow Damage 119 | . 62 57 Projectiles . | . . . Explosions 119 | . 62 57 Melee . | . . . Knockbacks . | . . . Impact . | . . . Kinetic . | . . . Secondary . | . . . Self-Inflicted Damage 135 | . 38 97 Shots 5 | . 2 3 Rammed . | . . . Targets Rammed . | . . . Kicked . | . . . Crushed . | . . . Highest Temperature 257 | . 16 257 Average Temperature 80 | . 3 84 Received Heat Transfer 207 | . 78 129 Effects 2 | . . 2 Interference 2 | . . 2 Siege Activations . | . . . Martial Activations . | . . . Shielding Activations . | . . . Robots Disrupted . | . . . Combat Hostiles . | . . . Robots Corrupted . | . . . Combat Hostiles . | . . . Parts Fried . | . . . Impact Corruptions . | . . . Robots Melted . | . . . Combat Hostiles . | . . . Parts Melted . | . . . Heat Transferred . | . . . Parts Sabotaged . | . . . Parts Stolen . | . . . Parts Stripped . | . . . Power Chain Reactions . | . . . Alert | -11 -10 -9 ------- Run | Yrd Mat Mat Maximum Alert Level 3 | . 1 3 Low Security (%) 75 | 100 99 19 Level 1 9 | . . 30 Level 2 11 | . . 38 Level 3 3 | . . 11 Level 4 . | . . . Level 5 . | . . . High Security . | . . . Max Security . | . . . Peak Influence 847 | . 247 847 Initial 104 | . . 104 Average 176 | . 66 444 Influence Increases 1524 | . 461 1063 Destroy 0b10 Robot/C 780 | . 240 540 Destroy 0b10 Robot/NC 105 | . 40 65 Destroy Leader 174 | . 58 116 Trap Triggered on 0b10 10 | . 10 . Successful Hack 46 | . 43 3 Disable Machine 45 | . . 45 Destroy Structure 334 | . 40 294 Lose Combat Pursuer 30 | . 30 . Influence Decreases 677 | . 214 463 Entered New Map 143 | . . 143 Time Decay 374 | . 214 160 Lost Part 10 | . . 10 Purge Threat 150 | . . 150 Squads Dispatched 3 | . 1 2 Investigation 2 | . . 2 Extermination . | . . . Reinforcement 1 | . 1 . Assault . | . . . Garrison . | . . . Intercept . | . . . Searches Triggered . | . . . Construction Impeded . | . . . Haulers Reinforced . | . . . Active Scanning Responses . | . . . Cargo Convoy Interrupts . | . . . Stealth | -11 -10 -9 --------- Run | Yrd Mat Mat Distress Signals 2 | . . 2 Communications Jammed . | . . . Distress Signals . | . . . Times Spotted 49 | . 25 24 Peak Tracking Total 7 | . 7 7 Tactical Retreats 1 | . 1 . Traps | -11 -10 -9 ------- Run | Yrd Mat Mat Traps Triggered 2 | . . 2 Indirectly . | . . . Trap Hack Attempts . | . . . Triggered . | . . . Disarmed . | . . . Reprogrammed 8 | . 4 4 Reused 1 | . 1 . Traps Extracted . | . . . Installed . | . . . Triggered 1 | . 1 . Machines | -11 -10 -9 ---------- Run | Yrd Mat Mat Machines Disabled 3 | . . 3 Max in Single Turn 1 | . . 1 Machines Repaired . | . . . Machines Dismantled . | . . . Machines Sabotaged . | . . . Overloaded Fab Kills . | . . . Hacking | -11 -10 -9 --------- Run | Yrd Mat Mat Machines Accessed 10 | . 7 3 Terminals 9 | . 6 3 Fabricators . | . . . Repair Stations . | . . . Recycling Units 1 | . 1 . Scanalyzers . | . . . Garrison Access . | . . . Total Hacks 31 | . 18 13 Successful 19 | . 12 7 Failed 12 | . 6 6 Catastrophic 3 | . 2 1 Database Lockouts . | . . . Manual . | . . . Terminals 29 | . 16 13 Fabricators . | . . . Repair Stations . | . . . Recycling Units 2 | . 2 . Scanalyzers . | . . . Garrison Access . | . . . Terminal Hacks 17 | . 10 7 Robot Analysis 1 | . 1 . Prototype ID Bank 2 | . 1 1 Emergency Access Points 1 | . . 1 Repair Station Index 1 | . 1 . Alert Level 1 | . 1 . Unreport Threat 1 | . . 1 Locate Traps 1 | . 1 . Reprogram Traps 2 | . 1 1 Dispatch Records 1 | . . 1 Hauler Manifests 1 | . 1 . Registered Components 2 | . 1 1 Zone Layout 3 | . 2 1 Fabricator Hacks . | . . . Repair Station Hacks . | . . . Recycling Unit Hacks 2 | . 2 . Retrieve Matter 1 | . 1 . Retrieve Components 1 | . 1 . Scanalyzer . | . . . Garrison Access Hacks . | . . . Unauthorized Hacks . | . . . Terminals . | . . . Fabricators . | . . . Repair Stations . | . . . Recycling Units . | . . . Scanalyzers . | . . . Garrison Access . | . . . Data Cores Recovered 1 | . 1 . Used 1 | . 1 . Hacking Detections 9 | . 6 3 Full Trace Events 1 | . 1 . Feedback Events . | . . . Feedback Blocked . | . . . Robot Schematics Acquired . | . . . Robots Built . | . . . Authchips . | . . . Time . | . . . Total Robot Build Rating . | . . . Part Schematics Acquired . | . . . Parts Built . | . . . Authchips . | . . . Time . | . . . Total Part Build Rating . | . . . Part Studies Acquired . | . . . Parts Repaired . | . . . Time . | . . . Parts Recycled . | . . . Recycled Matter . | . . . Retrieved Matter . | . . . Retrieved Components 1 | . 1 . Parts Scanalyzed . | . . . Part Schematics Acquired . | . . . Parts Damaged . | . . . Bothacking | -11 -10 -9 ------------ Run | Yrd Mat Mat Used RIF Installer . | . . . Robots Hacked . | . . . Non-combat . | . . . Combat . | . . . Robot Hacks Applied . | . . . Relay Couplers Released . | . . . Fabnet Peak Effective % . | . . . Robots Rewired . | . . . Allies Hacked . | . . . Hacks Repelled . | . . . Allies | -11 -10 -9 -------- Run | Yrd Mat Mat Total Allies . | . . . Largest Group . | . . . Highest-Rated Group . | . . . Highest-Rated Ally . | . . . Total Orders . | . . . Ally Attacks . | . . . Total Damage . | . . . Kills . | . . . Allies Corrupted . | . . . Allies Melted . | . . . Intel | -11 -10 -9 ------- Run | Yrd Mat Mat Active Infowar (turns) . | . . . Robot Analysis Total 1 | . 1 . Derelict Logs Recovered . | . . . Drone Launches . | . . . Drone Recoveries . | . . . Exploration | -11 -10 -9 ------------- Run | Yrd Mat Mat Turns Passed 1109 | 25 757 327 Spaces Moved 1319 | 43 764 512 Core 110 | 43 67 . Treads . | . . . Legs . | . . . Wheels . | . . . Hover 647 | . 647 . Flight 562 | . 50 512 Fastest Speed 29 | 50 31 29 Average Speed 40 | 50 47 30 Slowest Speed 60 | 50 60 31 Overloaded Moves . | . . . Propulsion Burnouts . | . . . Robots Hopped 1 | . . 1 Potential Cave-ins . | . . . Cave-ins Triggered . | . . . Exploration Rate (%) 49 | 4 92 53 Regions Visited 2 Branch Regions . Pre-discovered Areas . | . . . Known Exits Taken . | . . . Unknown Exits Taken 2 | 1 1 . Scrap Searched . | . . . Spaces Dug . | . . . Terrain Destroyed 419 | . 37 382 Melee . | . . . Projectile . | . . . AOE 419 | . 37 382 Terrain Rammed . | . . . Walls Destroyed . | . . . Machines Disabled . | . . . Actions | -11 -10 -9 --------- Run | Yrd Mat Mat Total 1737 | 45 1066 626 Wait 267 | 2 196 69 Move 1315 | 42 763 510 Hop 1 | . . 1 Pick Up 3 | . 1 2 Fast Attach 14 | 1 11 2 Attach 2 | . . 2 Detach . | . . . Swap 3 | . 1 2 Drop 9 | . 6 3 Fire 120 | . 87 33 Melee . | . . . Ram . | . . . Kick . | . . . Crush . | . . . Escape Stasis . | . . . Rewire . | . . . Trap . | . . . Miscellaneous 3 | . 1 2 Route ------- -11/Scrapyard -10/Materials (discovered 4 exits: *Mat x3 / [*Min]) -9/Materials (discovered 3 exits: [*Mat] / [*Min x2]) History --------- Turn | Location | Event 7 | -11/Scrapyard | Discovered new exit (range 15) 26 | -11/Scrapyard | Entered Materials 66 | -10/Materials | Upgraded with Propulsion slot (x3) 259 | -10/Materials | Discovered new exit (range 10) 306 | -10/Materials | Build established: Mutant 698 | -10/Materials | Discovered new exit (range 9) 714 | -10/Materials | Discovered new exit (range 13) 770 | -10/Materials | Discovered new exit (range 15) 778 | -10/Materials | Reached level 2 783 | -10/Materials | Entered another Materials area 785 | -9/Materials | Reached level 3 790 | -9/Materials | Upgraded with Utility slot (x1) 798 | -9/Materials | Discovered new exit (range 9) 842 | -9/Materials | Core integrity fell below 50% 877 | -9/Materials | Destroyed 8 combat bots 935 | -9/Materials | Reached level 4 950 | -9/Materials | Upgraded with Weapon slot (x1) 956 | -9/Materials | Discovered new exit (range 14) 968 | -9/Materials | Core integrity fell below 20% 1062 | -9/Materials | Build established: Sprinter 1079 | -9/Materials | Reached level 5 1086 | -9/Materials | Discovered new exit (range 15) 1108 | -9/Materials | Destroyed 10 combat bots 1110 | -9/Materials | Destroyed by Y-45 Defender with Beam Rifle Last Messages --------------- 01076_ Field Recycling Unit collects Heat Sink, recycling 0 matter... 01077_ Field Recycling Unit collects Wheel, recycling 1 matter... 01077_ K-01 Serf collects debris. 01079_ The unstable cave ceiling collapses. 01079_ S-10 Pest destroyed. 01079_ Reached level 5. 01082_ S-10 Pest destroyed. 01086_ Triggered Alarm Trap. 01086_ An alarm sounds. 01086_ ALERT: Alarm triggered, dispatching investigation squad. 01086_ EXIT=FOUND 01087_ G-34 Mercenary destroyed. 01088_ K-01 Serf collects debris. 01091_ The unstable cave ceiling collapses. 01091_ K-01 Serf collects debris. 01093_ The unstable cave ceiling collapses. 01094_ Acquired 48 matter. 01095_ The unstable cave ceiling collapses. 01096_ Used Protomatter to restore core integrity (+30, depleted) 01107_ Critical hit (Burn: +37). Map ----- +----------------------------------------------------+ | | | | | | | | | | | | | | | | | | | | | | | | | | | | | | | ????????????????#############????????????????????? | | ????????????????# #????????????????????? | | ????????????????# """ """ #????????????????????? | | ????????????????# """ """ #????????????????????? | | ????????????????# """ """ #????????????????????? | | ????????????????# #????????????????????? | | ????????????????# [ #????????????????????? | | ??????????????### #??##### ?????????? | | ??????????????# ###### ????????? | | ??????????????# [ ????????? | | ??????????????# <%[ *@ Y????????? | | ??????????????# %[ % ????????? | | ?????????????### * [ # #### ????????? | | ?????????????#!!! # ?????????? | | ?????????????#!!! * #??? # ?????????? | | ?????????????#!! #??????????????|??? | | ?????????????# #?????????????????? | | ?????????????# # #?????????????????? | | ?????????????# # #?????????????????? | | ???????????######### ###########??????????????? | | ???????????# ! #??????????????? | | ???????????# || #??????????????? | | ???????????# |! #??????????????? | | ???????????# | #??????????????? | | ???????????#! # #??????????????? | | ???????????# # # #??????????????? | | ???????????# # # #??????????????? | | ???????????# # # #??????????????? | | ???????????# ! ## ########??????????????? | | ???????????####### ##########??????????????? | | ?????????????????# ] #??????????????? | | ???????????####### # #?????????????[? | | ???????????# "" """ #??????????????? | | ???????????# % "" """????????????????? | | ???????????# """ """ #??????????????? | +----------------------------------------------------+ Best States ------------- Heat Dissipation 31 Energy Generation 14 Energy Capacity 160 Matter Stores 300 Matter Capacity 300 Sight Range 16 Robot Scan Range 2 Terrain Scan Density 10 Evasion (%) 64 Offensive Hacking 15 Item Schematics ----------------- None Robot Schematics ------------------ None Fabricated ------------ Nothing Repaired ---------- Nothing Studied --------- None Alien Tech Used ----------------- None Achievements -------------- None Challenges ------------ None RPGLIKE | -11 -10 -9 --------- Run | Yrd Mat Mat Levels Raised 4 | . 1 3 XP Earned 9693 | 3000 1690 5003 XP Spent 4650 | . 3000 1650 Upgrades 11 | . 7 4 Propulsion Slot 3 | . 3 . Utility Slot 1 | . . 1 Weapon Slot 1 | . . 1 Heat Dissipation 1 | . . 1 Mass Support 2 | . 1 1 Inventory Capacity 1 | . 1 . Sensor Range 1 | . 1 . Hack Attack % 1 | . 1 . Protomatter Created 104 | . 74 30 Integrity Restored 48 | . 18 30 Core 48 | . 18 30 Protomatter Decayed 9 | . . 9 Game ------ Seed TrapMomentumExoskeleton Manual? 0 Play Time 00:19:55 Cumulative 50.0 hours Start 2025.11.21 @ 12:21:44 End 2025.11.21 @ 12:39:45 Sessions 1 Manual Loads 0 Difficulty Rogue Special Mode Winter2019/RPGLIKE Game No. 102 Rogue 102 Adventurer 0 Explorer 0 Win Type - Total 0 Types 0/0/0/0/0/0/0/0/0/0 Lore% 21 Gallery% 35 Achievement% 27 Wizard Run 0 Options --------- Layout 0 ASCII 0 Keyboard 0 Movement Mouse Keybinds 0 Fullscreen 2 Font 18/SmallcapsGlow Map View 76x50 Zoom Use 0% Tactical HUD 1 Map Filters NONE Filters NONE Steam 1 RUN: 1c7716eb-a509-466e-b781-af5f26b2e4ae